bitfinex-derivatives/quotes_ETHF0:USTF0_20240910
["timestamp","ask_amount","ask_price","bid_price","bid_amount"]
[1725977220420,1.07433,2326.9,2326.2,0.42985]
[1725977220621,0.42984,2326.4,2326.2,0.42985]
[1725977220817,0.42984,2326.4,2325.5,0.21579687]
[1725977220818,1.07459,2326.4,2325.5,0.21579687]
[1725977221023,1.07459,2326.4,2325.8,0.42992]
[1725977221024,0.4299,2326.0,2325.8,0.42992]
[1725977221328,12.03248646,2326.3,2325.4,0.43]
[1725977221329,0.42998,2325.6,2325.4,0.43]
[1725977221522,0.43,2325.5,2325.3,0.43002]
[1725977222024,11.90005775,2325.7,2325.1,0.8018]
[1725977222025,1.07493,2325.6,2325.1,0.8018]
[1725977222325,10.82516775,2325.4,2325.3,0.43003]
[1725977222527,10.82516775,2325.5,2325.4,0.43001]
[1725977222731,1.6497453,2327.0,2325.4,0.43001]
[1725977222732,11.25508775,2325.9,2325.4,4.3]
[1725977222931,1.84474,2326.3,2325.1,1.47993]
[1725977222932,0.7701,2326.3,2325.1,0.4048]
[1725977223228,2.14849,2327.1,2326.0,0.4299]
[1725977223229,10.50067808,2326.1,2326.0,0.4299]
[1725977223429,4.78425,2327.1,2326.2,0.42986]
[1725977223430,1.07442,2326.8,2326.2,0.42986]
[1725977223628,1.47881,2327.0,2326.3,0.42984]
[1725977223629,10.50067808,2326.4,2326.3,0.42984]
[1725977223825,0.42978,2326.7,2326.4,0.42982]
[1725977224222,10.92222113,2326.4,2326.3,0.42984]
[1725977224422,0.42975,2326.8,2326.5,0.4298]
[1725977224733,10.92222113,2326.9,2326.8,0.42974]
[1725977225030,10.92222113,2326.9,2326.2,1.07466]
[1725977225031,0.42967,2327.3,2327.0,0.42971]
[1725977225228,0.7918,2327.8,2327.0,0.42971]
[1725977225229,10.91735443,2327.1,2327.0,0.42971]
[1725977225429,0.7918,2327.8,2327.0,46.8]
[1725977225633,0.7918,2327.8,2327.0,40.8]
[1725977225634,10.91735443,2327.7,2327.0,40.8]
[1725977226032,3.71,2328.4,2327.0,40.8]
[1725977226235,1.07374,2328.2,2327.0,40.8]
[1725977226528,3.71,2328.4,2327.0,40.8]
[1725977226529,10.56331032,2328.1,2327.0,40.8]
[1725977227034,0.42956,2327.9,2327.4,0.42964]
[1725977227232,11.90926497,2328.3,2327.0,40.8]
[1725977227435,10.83556497,2327.8,2327.4,0.42963]
[1725977227623,0.42955,2327.9,2327.3,0.42965]
[1725977227930,10.59452455,2327.8,2327.0,40.8]
[1725977228129,0.42959,2327.7,2327.0,40.8]
[1725977228327,10.59452455,2328.0,2327.0,40.8]
[1725977228527,3.71,2328.1,2327.0,40.8]
[1725977228737,4.78379,2328.1,2327.0,40.8]
[1725977228938,10.99476576,2327.9,2327.1,0.42969]
[1725977229243,0.42957,2327.8,2327.0,40.8]
[1725977229533,0.42957,2327.8,2326.8,0.7711]
[1725977229534,0.42965,2327.4,2326.9,0.42972]
[1725977229729,1.07401,2327.6,2326.8,0.7711]
[1725977229929,10.71631158,2327.3,2326.8,0.7711]
[1725977230230,0.4031,2327.7,2326.8,0.7711]
[1725977230231,9.03129909,2327.5,2326.9,0.42972]
[1725977230436,0.4031,2327.7,2326.9,0.42973]
[1725977230437,0.42964,2327.4,2326.9,0.42973]
[1725977230639,0.4031,2327.7,2326.8,0.82384]
[1725977230640,0.42966,2327.3,2326.8,0.82384]
[1725977230836,0.42968,2327.2,2326.8,0.82384]
[1725977231032,0.42967,2327.3,2326.8,0.82384]
[1725977231336,0.4297,2327.1,2326.8,0.3941]
[1725977231541,10.91900184,2327.2,2326.8,0.82384]
[1725977231841,10.85850726,2327.0,2326.4,0.3708]
[1725977232237,1.07424,2327.1,2326.4,0.3708]
[1725977232533,0.4298,2326.6,2326.1,0.3956]
[1725977232837,10.56031882,2326.5,2326.1,0.3956]
[1725977233035,10.56031882,2326.5,2326.1,0.82547]
[1725977233036,10.99012882,2326.5,2326.1,0.82547]
[1725977233237,10.56031882,2326.6,2325.9,40.8]
[1725977233432,10.56031882,2326.4,2325.9,41.2018]
[1725977233628,10.99014882,2326.4,2326.0,0.4299]
[1725977233833,0.42983,2326.4,2326.0,0.4299]
[1725977234043,4.1042,2326.8,2326.1,0.42987]
[1725977234242,4.1042,2326.8,2325.9,0.4018]
[1725977234243,0.4298,2326.6,2325.9,0.4018]
[1725977234540,10.8080647,2326.5,2325.9,0.4018]
[1725977234733,10.8080647,2326.5,2326.3,0.42983]
[1725977234942,10.57869164,2326.6,2326.3,0.42983]
[1725977235330,0.42978,2326.7,2326.3,0.42983]
[1725977235542,10.57869164,2326.6,2326.0,0.42989]
[1725977235833,10.57869164,2326.6,2325.9,0.4299]
[1725977235834,0.42985,2326.3,2325.9,0.4299]
[1725977236035,0.42985,2326.3,2325.9,0.42991]
[1725977236235,0.42985,2326.3,2326.0,0.42989]
[1725977236236,10.543064,2326.2,2326.0,0.42989]
[1725977236936,10.543064,2326.2,2326.1,0.42988]
[1725977237142,10.543064,2326.2,2325.7,40.8]
[1725977237636,10.543064,2326.2,2325.5,1.22143647]
[1725977237937,4.78456,2326.5,2325.3,0.3941]
[1725977237938,1.07461,2326.3,2325.3,0.3941]
[1725977238135,3.71,2326.2,2325.4,0.62997196]
[1725977238336,1.07474,2326.1,2325.0,1.11695515]
[1725977238538,0.42997,2325.7,2325.1,1.63794913]
[1725977238736,0.42994,2325.8,2325.2,0.62998043]
[1725977238937,11.1083488,2326.0,2325.3,0.62998043]
[1725977239239,11.1083488,2326.0,2325.0,40.80702521]
[1725977239240,10.66081214,2325.7,2325.1,1.00798425]
[1725977239439,11.09073214,2325.9,2325.5,0.42998]
[1725977239630,0.42994,2325.8,2325.5,0.42998]
[1725977239835,5.1896302,2326.2,2325.1,2.08312917]
[1725977240048,5.1896302,2326.2,2325.2,1.63800004]
[1725977240049,10.78884133,2325.8,2325.2,1.63800004]
[1725977240338,10.78884133,2325.8,2325.0,42.10113688]
[1725977240339,10.78884133,2326.0,2325.3,0.63000205]
[1725977240536,10.78884133,2325.7,2325.1,1.00799438]
[1725977240837,10.78884133,2325.8,2325.2,0.63000526]
[1725977241044,1.07474,2326.1,2325.3,0.63000526]
[1725977241236,0.42992,2325.9,2325.6,0.42997]
[1725977241431,11.34578366,2325.9,2325.6,0.42997]
[1725977241631,0.42992,2325.9,2325.6,0.42997]
[1725977241831,4.0898,2326.2,2325.1,1.07513]
[1725977242032,10.84673087,2325.8,2325.7,0.42994]
[1725977242343,0.42991,2325.9,2325.6,0.42996]
[1725977242736,10.84673087,2325.8,2325.7,0.42995]
[1725977243241,0.4299,2326.0,2325.0,44.27487142]
[1725977243242,0.43,2325.5,2325.3,0.64137335]
[1725977243433,1.07493,2325.7,2325.1,0.43006]
[1725977243638,0.43002,2325.4,2325.2,1.07142473]
[1725977243830,10.91811708,2325.6,2325.0,0.00702521]
[1725977244135,0.43002,2325.4,2325.1,0.64138535]
[1725977244337,0.43,2325.5,2325.3,0.43002]
[1725977244546,11.29261708,2325.6,2325.4,0.43]
[1725977244838,10.91811708,2325.6,2325.5,0.42999]
[1725977245236,0.42994,2325.8,2325.6,0.42996]
[1725977245430,1.0747,2326.1,2325.6,0.42996]
[1725977245634,0.42994,2325.8,2325.2,0.64136654]
[1725977245848,0.42994,2325.8,2325.1,41.87513]
[1725977246139,0.4299,2326.0,2325.8,0.42993]
[1725977246330,11.27459493,2326.1,2325.9,0.42991]
[1725977246533,11.27459493,2326.1,2325.8,0.42992]
[1725977246534,10.54080795,2325.9,2325.8,0.42992]
[1725977246732,10.54080795,2325.9,2325.5,0.381]
[1725977246733,0.42992,2325.9,2325.5,0.381]
[1725977246943,10.54080795,2326.0,2325.9,0.42991]
[1725977247130,0.42986,2326.3,2326.1,0.42988]
[1725977247337,5.18482,2326.5,2325.6,1.07491]
[1725977247530,10.96642573,2326.2,2326.1,0.42987]
[1725977247742,4.1103,2326.5,2325.6,0.3852]
[1725977248041,0.42987,2326.2,2325.9,0.4299]
[1725977248544,0.42985,2326.3,2326.0,0.42988]
[1725977248744,0.42985,2326.3,2326.1,0.42987]
[1725977249045,10.81468572,2326.2,2326.1,0.42987]
[1725977249239,10.81468572,2326.2,2325.6,0.3852]
[1725977249240,11.24454572,2326.2,2326.0,0.42989]
[1725977249434,0.42985,2326.3,2325.6,1.46011]
[1725977249631,0.42985,2326.3,2326.1,0.42987]
[1725977249835,4.1103,2326.5,2325.6,0.3852]
[1725977249836,10.81468572,2326.2,2325.6,0.3852]
[1725977250035,10.81468572,2326.2,2325.2,1.02616482]
[1725977250036,14.52468572,2326.2,2325.2,1.02616482]
[1725977250245,3.71,2326.2,2325.1,40.8]
[1725977250544,3.71,2326.2,2325.8,0.42993]
[1725977250545,0.4299,2326.0,2325.8,0.42993]
[1725977250736,10.92967375,2326.1,2325.7,0.21389431]
[1725977250934,10.72537914,2325.9,2325.2,1.71646575]
[1725977251248,11.15527914,2326.0,2325.8,0.42993]
[1725977251441,11.15527914,2326.0,2325.6,0.21860403]
[1725977251741,3.71,2326.2,2325.8,0.42993]
[1725977251943,1.0747,2326.1,2325.6,0.42996]
[1725977252145,1.07475,2326.0,2325.2,0.64135806]
[1725977252444,0.42991,2326.0,2325.8,0.42993]
[1725977252634,0.42991,2326.0,2325.8,0.42992]
[1725977252841,1.07463,2326.3,2325.2,1.07512]
[1725977252842,0.42989,2326.1,2325.2,1.07512]
[1725977253144,10.6952057,2326.0,2325.9,0.42991]
[1725977253345,10.6952057,2326.0,2325.6,0.21598035]
[1725977253544,10.6952057,2326.0,2325.9,0.42991]
[1725977253738,1.07459,2326.4,2325.6,0.21729219]
[1725977253938,0.42988,2326.1,2325.9,0.4299]
[1725977254139,10.94243104,2326.2,2325.7,0.3849]
[1725977254445,1.0998302,2327.1,2326.2,1.07464]
[1725977254645,4.4632,2327.4,2326.3,0.785]
[1725977254943,4.4632,2327.4,2326.4,1.07456]
[1725977254944,10.65297458,2327.1,2326.4,1.07456]
[1725977255150,11.08266458,2327.1,2326.8,0.42974]
[1725977255351,0.4297,2327.1,2326.8,0.42974]
[1725977255548,0.7532,2327.4,2326.9,0.42972]
[1725977255744,0.42964,2327.5,2326.5,40.8]
[1725977255943,0.42961,2327.6,2327.3,0.42964]
[1725977256151,10.97360784,2327.5,2327.2,0.42966]
[1725977256349,0.42962,2327.5,2326.7,1.07442]
[1725977256549,0.42961,2327.6,2327.3,0.42965]
[1725977256947,10.92140323,2327.6,2326.6,1.10992994]
[1725977257150,10.92140323,2327.6,2326.5,41.90992994]
[1725977257351,0.42963,2327.5,2327.2,0.42967]
[1725977257752,10.92140323,2327.6,2327.3,0.42965]
[1725977257948,10.92140323,2327.6,2326.9,0.3944]
[1725977258154,4.0919,2328.0,2326.9,0.3944]
[1725977258155,0.3819,2328.0,2327.1,1.07424]
[1725977258449,0.3819,2328.0,2327.0,0.3877]
[1725977258450,10.87966615,2327.9,2327.5,0.42961]
[1725977258756,0.42957,2327.8,2327.4,0.42962]
[1725977258955,11.30921615,2327.9,2327.5,0.42962]
[1725977259151,1.47767,2328.2,2327.1,4.78424]
[1725977259152,0.4039,2328.2,2327.1,4.78424]
[1725977259452,1.0998302,2329.1,2327.7,3.71]
[1725977259655,0.4039,2329.3,2329.1,0.42932]
[1725977259844,5.1908302,2329.6,2328.0,3.71]
[1725977259845,3.71,2329.6,2328.0,3.71]
[1725977260043,3.71,2329.6,2329.0,0.42933]
[1725977260044,10.63430335,2329.2,2329.0,0.42933]
[1725977260352,10.63430335,2329.4,2328.3,1.07368]
[1725977260553,3.71,2329.6,2328.4,40.8]
[1725977260554,10.63430335,2329.3,2328.4,40.8]
[1725977260751,10.63430335,2329.4,2328.4,40.8]
[1725977260956,10.63430335,2329.4,2329.1,0.42931]
[1725977261157,11.35159391,2329.5,2328.6,0.42942]
[1725977261158,0.42927,2329.5,2328.6,0.42942]
[1725977261453,0.42931,2329.2,2328.8,0.42937]
[1725977261657,0.42931,2329.2,2328.6,0.4007]
[1725977261658,11.35163391,2329.3,2328.9,0.42936]
[1725977261968,0.42926,2329.5,2329.1,0.42932]
[1725977262149,0.42924,2329.6,2329.2,0.4293]
[1725977262348,11.251117,2329.5,2328.6,0.4007]
[1725977262657,0.42926,2329.5,2329.0,0.42933]
[1725977262850,0.42926,2329.5,2329.1,0.42932]
[1725977263051,0.42924,2329.6,2328.6,0.4007]
[1725977263244,4.78296,2329.9,2328.6,0.4007]
[1725977263245,0.42925,2329.5,2329.1,0.42931]
[1725977263443,10.79649235,2329.5,2329.0,0.42933]
[1725977263648,0.42928,2329.4,2329.0,0.42934]
[1725977263857,1.87011,2329.8,2329.0,0.42934]
[1725977263858,0.42926,2329.5,2329.0,0.42934]
[1725977264354,1.87011,2329.8,2328.6,0.4007]
[1725977264355,3.71,2329.6,2328.6,0.4007]
[1725977264565,3.71,2329.6,2329.0,0.42933]
[1725977264566,10.17044316,2329.4,2329.0,0.42933]
[1725977264753,10.87044316,2329.6,2329.3,0.42928]
[1725977265062,0.7971,2329.8,2329.2,0.4293]
[1725977265360,11.27540184,2329.6,2329.2,0.4293]
[1725977265545,10.84617184,2329.6,2329.3,0.42929]
[1725977265749,0.7971,2329.8,2328.8,1.07346]
[1725977266059,0.7971,2329.8,2328.6,0.4007]
[1725977266060,10.96084744,2329.5,2329.2,0.4293]
[1725977266253,11.39007744,2329.6,2329.2,0.4293]
[1725977266454,0.42923,2329.6,2329.2,0.4293]
[1725977266665,10.96084744,2329.5,2328.6,0.4007]
[1725977266858,10.96084744,2329.5,2329.4,0.42927]
[1725977267051,10.96084744,2329.5,2328.8,1.07345]
[1725977267052,0.4039,2329.8,2329.3,0.21439983]
[1725977267252,0.4039,2329.8,2328.8,1.07345]
[1725977267451,0.8331,2329.8,2328.8,1.07345]
[1725977267750,0.8331,2329.8,2329.4,0.42926]
[1725977268250,0.42922,2329.7,2329.3,0.42928]
[1725977268454,0.42923,2329.7,2329.3,0.42927]
[1725977268852,0.4039,2329.8,2329.6,0.42923]
[1725977269049,1.07263,2330.7,2329.6,0.42923]
[1725977269050,1.45764,2330.8,2329.6,6.0]
[1725977269250,1.82706,2330.8,2329.7,0.3785]
[1725977269453,10.84516062,2330.3,2330.0,0.42915]
[1725977269757,0.4291,2330.3,2329.9,0.42917]
[1725977270055,0.42909,2330.4,2330.0,0.42916]
[1725977270258,1.07245,2331.0,2329.7,41.1785]
[1725977270458,10.94896414,2330.3,2329.9,0.42917]
[1725977270647,1.07266,2330.6,2329.7,41.1785]
[1725977270957,0.42914,2330.1,2329.7,0.8077]
[1725977271154,0.42917,2330.0,2329.6,0.42922]
[1725977271357,0.4038,2330.4,2329.4,0.3993]
[1725977271545,0.42911,2330.3,2329.9,0.42917]
[1725977271750,0.42915,2330.1,2329.7,0.42921]
[1725977272053,10.78438067,2330.3,2329.4,0.3993]
[1725977272456,10.78438067,2330.3,2329.5,1.07313]
[1725977272659,0.42906,2330.6,2330.2,0.42912]
[1725977272854,0.42906,2330.6,2329.7,1.07304]
[1725977272855,0.42904,2330.7,2330.3,0.4291]
[1725977273058,10.75388967,2330.5,2330.4,0.42908]
[1725977273257,0.3755,2331.1,2330.4,4.72028]
[1725977273557,10.75388967,2331.0,2330.1,1.07285]
[1725977273755,10.75388967,2331.0,2330.2,0.371]
[1725977273954,10.75388967,2331.0,2330.7,0.42902]
[1725977274267,10.75388967,2331.0,2330.6,0.42905]
[1725977274564,10.75388967,2331.0,2330.3,3.71]
[1725977274777,3.2430102,2332.9,2330.3,3.71]
[1725977274778,4.4683,2332.2,2330.6,3.71]
[1725977275055,4.4683,2332.2,2330.7,0.3989]
[1725977275257,10.77120245,2331.7,2330.7,0.3989]
[1725977275461,0.42884,2331.8,2331.1,0.42895]
[1725977275661,10.77120245,2331.6,2331.0,0.42897]
[1725977275859,10.77120245,2331.6,2330.7,0.3989]
[1725977276056,3.71,2331.9,2330.7,0.3989]
[1725977276561,10.82783084,2331.5,2330.5,0.42905]
[1725977276761,0.42893,2331.3,2330.6,0.42904]
[1725977276958,0.3665,2331.4,2330.6,0.21927358]
[1725977277165,0.3665,2331.4,2330.2,0.371]
[1725977277166,0.3665,2331.4,2330.3,3.71]
[1725977277467,10.56474237,2331.3,2330.2,0.371]
[1725977277660,10.56474237,2331.3,2330.7,0.42902]
[1725977277854,10.56474237,2331.3,2330.5,0.42906]
[1725977278155,10.56474237,2331.3,2330.8,0.429]
[1725977278353,10.56474237,2331.3,2330.2,0.371]
[1725977278553,10.56474237,2331.3,2330.7,0.42902]
[1725977278754,10.56474237,2331.3,2330.2,0.371]
[1725977278957,10.56474237,2331.3,2330.8,0.429]
[1725977279161,10.56474237,2331.3,2330.3,1.07276]
[1725977279467,3.71,2332.3,2330.4,3.71]
[1725977279658,0.39,2332.0,2330.7,3.71]
[1725977279967,10.86180032,2331.8,2330.8,41.184]
[1725977280268,0.39,2332.0,2330.8,41.39346508]
[1725977280464,10.6362159,2331.8,2331.3,3.71]
[1725977280670,0.7938,2332.8,2331.8,1.07207]
[1725977280857,11.4300159,2332.8,2332.1,1.07194]
[1725977281053,11.4300159,2332.8,2332.6,0.42866]
[1725977281266,0.7938,2332.8,2332.1,40.8]
[1725977281786,0.3994,2333.7,2332.3,3.71]
[1725977282061,0.4011,2333.7,2333.0,3.71]
[1725977282364,0.4011,2333.7,2332.2,1.43908]
[1725977282365,10.85990429,2333.6,2332.9,0.42861]
[1725977282562,10.85990429,2333.6,2332.6,3.71]
[1725977282563,0.42853,2333.5,2332.8,0.42863]
[1725977282753,0.42855,2333.4,2332.7,0.42865]
[1725977282957,0.4011,2333.7,2332.6,3.71]
[1725977283155,0.4285,2333.6,2332.9,0.42861]
[1725977283351,5.18231,2333.7,2332.3,3.71]
[1725977283551,0.42855,2333.4,2332.7,0.42865]
[1725977283757,10.9000291,2333.6,2332.7,0.42865]
[1725977283959,0.3879,2333.5,2332.7,0.42865]
[1725977284164,0.42853,2333.4,2332.7,0.42865]
[1725977284361,0.42855,2333.3,2332.6,0.42867]
[1725977284565,0.42857,2333.2,2332.3,3.71]
[1725977284963,0.42857,2333.2,2332.6,0.42867]
[1725977285369,0.42859,2333.1,2332.5,0.42869]
[1725977285661,10.72204463,2333.4,2332.2,0.3672]
[1725977285869,10.72204463,2333.4,2332.3,3.71]
[1725977286070,0.4011,2333.7,2332.7,3.71]
[1725977286269,0.4011,2333.7,2333.2,0.42856]
[1725977286568,0.4011,2333.7,2332.8,0.397]
[1725977286773,0.4011,2333.7,2333.1,0.42857]
[1725977286774,0.4285,2333.6,2333.1,0.42857]
[1725977286961,0.4011,2333.7,2332.8,0.397]
[1725977287157,0.82959,2333.7,2332.8,0.397]
[1725977287467,11.0060845,2333.6,2333.1,0.42858]
[1725977287670,0.42854,2333.4,2332.9,0.42862]
[1725977287856,11.0060945,2333.6,2333.1,0.42859]
[1725977288057,11.0060945,2333.6,2332.8,0.397]
[1725977288058,0.3665,2334.0,2332.8,0.397]
[1725977288360,0.42847,2333.8,2333.3,0.42854]
[1725977288557,1.07121,2333.7,2332.7,3.71]
[1725977288760,1.07121,2333.7,2333.1,0.42859]
[1725977288761,10.60037531,2333.7,2333.1,0.42859]
[1725977288959,0.3665,2334.0,2332.7,3.71]
[1725977289162,0.42852,2333.5,2333.0,0.4286]
[1725977289463,0.42852,2333.5,2333.0,0.42859]
[1725977289766,0.42849,2333.7,2333.2,0.42856]
[1725977290169,0.4285,2333.6,2333.2,0.42856]
[1725977290669,10.47152418,2333.9,2332.7,3.71]
[1725977290670,1.07116,2333.8,2332.7,3.71]
[1725977290872,0.42853,2333.5,2333.1,0.42858]
[1725977291066,0.42852,2333.5,2333.0,0.4286]
[1725977291374,1.07113,2333.9,2332.5,0.3657]
[1725977291576,0.42856,2333.3,2332.5,0.3657]
[1725977291768,0.3823,2333.4,2332.8,0.42864]
[1725977291971,0.3823,2333.4,2332.9,0.42862]
[1725977292172,0.42856,2333.3,2332.9,0.42862]
[1725977292567,0.3823,2333.4,2332.6,4.78171]
[1725977292871,0.3823,2333.4,2333.1,0.42858]
[1725977293075,0.36043913,2334.4,2333.0,3.71]
[1725977293372,0.3823,2334.6,2333.8,1.07116]
[1725977293565,0.3922,2335.2,2334.4,0.42835]
[1725977293761,0.389,2336.0,2334.7,3.71]
[1725977293965,10.69998455,2336.0,2334.7,3.71]
[1725977294269,0.42816,2335.5,2335.0,0.42824]
[1725977294468,0.42816,2335.5,2334.7,3.71]
[1725977294469,11.28534857,2335.9,2334.7,4.13828]
[1725977294775,11.28534857,2335.9,2334.3,44.93836]
[1725977294776,0.42827,2334.9,2334.3,44.93836]
[1725977294976,0.42827,2334.9,2334.3,40.8]
[1725977295181,0.3922,2335.2,2334.3,40.8]
[1725977295383,0.42825,2335.0,2334.5,0.42833]
[1725977295672,0.42829,2334.8,2334.3,40.8]
[1725977295867,0.3922,2335.2,2334.1,0.21403295]
[1725977296066,0.3922,2335.2,2334.3,3.71]
[1725977296376,4.78015,2336.0,2334.6,3.71]
[1725977296576,0.42822,2335.1,2334.6,0.4283]
[1725977296789,0.42821,2335.2,2334.7,0.42829]
[1725977297077,0.42821,2335.2,2334.4,40.8]
[1725977297377,0.215,2338.5,2335.0,3.71]
[1725977297578,0.215,2338.5,2334.5,4.712]
[1725977297579,3.71,2337.1,2335.5,3.71]
[1725977297876,10.95528642,2336.6,2335.2,4.1075]
[1725977298173,4.77979,2336.8,2334.9,3.71]
[1725977298174,0.42806,2336.0,2334.9,3.71]
[1725977298476,10.91094424,2336.5,2335.0,0.3975]
[1725977298667,10.91094424,2336.7,2335.2,3.71]
[1725977298878,0.42797,2336.5,2335.2,3.71]
[1725977299173,10.88979993,2336.9,2335.6,3.71]
[1725977299367,10.88979993,2336.9,2335.9,3.71]
[1725977299566,0.747,2337.0,2335.9,3.71]
[1725977299973,0.747,2337.0,2335.7,0.07868227]
[1725977300274,10.71646495,2336.9,2335.7,0.07868227]
[1725977301179,3.71,2336.8,2335.7,0.07868227]
[1725977301475,0.42796,2336.6,2335.7,0.07868227]
[1725977301677,10.52656349,2336.7,2335.7,0.07868227]
[1725977301881,10.52656349,2336.8,2335.7,0.07868227]
[1725977302072,0.42793,2336.7,2335.8,40.8]
[1725977302271,0.42793,2336.7,2335.7,0.50678227]
[1725977302272,0.747,2337.0,2335.7,0.29580263]
[1725977302474,10.93198445,2336.9,2335.9,3.71]
[1725977302670,10.93198445,2336.9,2336.0,41.22804]
[1725977302879,11.35988445,2336.9,2336.0,41.22804]
[1725977303178,11.35988445,2336.9,2336.0,41.22806]
[1725977303376,0.747,2337.0,2336.0,40.8]
[1725977303581,3.71,2338.1,2336.6,3.71]
[1725977303788,0.3795,2337.7,2336.2,3.71]
[1725977303982,11.16032266,2337.7,2336.2,3.71]
[1725977304191,0.3795,2337.7,2336.6,3.71]
[1725977304388,0.3795,2337.7,2336.9,3.71]
[1725977304689,3.71,2338.8,2337.2,3.71]
[1725977304979,1.06855,2339.5,2336.5,3.925]
[1725977304980,3.71,2338.1,2336.5,3.925]
[1725977305180,3.71,2338.1,2336.7,0.42792]
[1725977305482,3.71,2337.8,2336.4,0.7771]
[1725977305683,0.7595,2337.7,2336.6,3.71]
[1725977305878,0.42781,2337.4,2336.6,4.13794]
[1725977306077,11.25641374,2337.7,2336.7,0.42792]
[1725977306680,11.25641374,2337.7,2336.7,0.42793]
[1725977306681,0.4278,2337.4,2336.7,0.42793]
[1725977306878,11.25641374,2337.7,2336.4,0.7771]
[1725977307079,0.42777,2337.6,2336.8,0.4279]
[1725977307282,0.7595,2337.7,2336.9,3.71]
[1725977307484,0.7595,2337.7,2336.9,3.92548569]
[1725977307778,0.3795,2337.7,2337.4,0.42779]
[1725977307981,0.7764,2338.4,2337.6,0.42775]
[1725977308187,0.7764,2338.4,2337.2,3.71]
[1725977308188,0.42763,2338.3,2337.2,3.71]
[1725977308374,0.7764,2338.4,2337.2,3.71]
[1725977308580,0.7764,2338.4,2337.5,3.71]
[1725977308776,0.42753,2338.9,2338.2,0.42765]
[1725977308973,0.7666,2339.1,2338.6,0.42757]
[1725977309199,11.5418144,2339.1,2338.2,3.71]
[1725977309387,0.42751,2339.0,2338.3,0.42763]
[1725977309584,0.7666,2339.1,2338.5,0.42759]
[1725977309775,0.42746,2339.3,2338.3,0.3912]
[1725977310083,11.17376388,2339.7,2338.5,3.71]
[1725977310279,0.42741,2339.6,2338.5,3.71]
[1725977310481,0.3658,2339.7,2338.8,3.71]
[1725977310681,3.71,2341.1,2339.2,3.71]
[1725977310881,0.3658,2340.8,2339.3,0.3912]
[1725977311080,10.80796388,2340.5,2339.5,3.71]
[1725977311281,0.3658,2340.8,2339.8,3.71]
[1725977311486,0.3658,2340.8,2340.2,0.42728]
[1725977311802,1.86907,2341.5,2339.4,0.3738]
[1725977311803,0.4008,2341.5,2340.1,3.71]
[1725977311987,0.3825,2341.8,2341.0,3.71]
[1725977312379,3.71,2342.8,2341.0,3.71]
[1725977312575,3.71,2342.4,2341.0,3.71]
[1725977312778,3.71,2342.4,2340.6,3.71]
[1725977312979,3.71,2342.1,2340.6,3.71]
[1725977313179,0.3825,2342.0,2340.6,4.13721]
[1725977313378,0.3825,2342.0,2340.6,3.71]
[1725977313379,10.93050341,2342.0,2340.6,3.71]
[1725977313578,10.93050341,2342.0,2340.4,0.3768]
[1725977313781,10.93050341,2342.0,2340.3,3.71]
[1725977313782,0.42709,2341.3,2340.3,3.71]
[1725977313988,0.42709,2341.3,2340.4,40.8]
[1725977314188,10.49684355,2341.2,2340.3,3.71]
[1725977314484,3.71,2341.8,2340.2,0.07852888]
[1725977314485,0.42718,2340.9,2340.2,0.07852888]
[1725977314877,3.71,2341.5,2340.2,0.07852888]
[1725977315077,10.93685626,2340.8,2340.2,0.07852888]
[1725977315490,3.71,2341.5,2340.2,0.07852888]
[1725977315491,3.71,2341.1,2340.2,0.07852888]
[1725977315791,0.42727,2340.3,2340.2,0.07852888]
[1725977315987,4.70007,2340.3,2339.0,3.71]
[1725977316181,3.71,2340.8,2339.1,0.07855978]
[1725977316182,0.42725,2340.4,2339.1,0.07855978]
[1725977316381,3.71,2340.8,2339.4,0.42743]
[1725977316582,3.71,2340.8,2339.3,3.71]
[1725977316583,10.93018011,2340.7,2339.3,3.71]
[1725977316787,0.4273,2340.2,2339.3,3.71]
[1725977316991,10.93018011,2340.7,2339.6,0.42739]
[1725977317188,10.93018011,2340.7,2339.3,3.71]
[1725977317378,10.93018011,2340.7,2339.7,3.71]
[1725977317581,10.93018011,2340.7,2339.9,0.42733]
[1725977317782,0.42716,2340.9,2340.0,0.42732]
[1725977317995,0.3954,2341.0,2339.8,0.42736]
[1725977318287,0.42724,2340.5,2339.7,4.13738]
[1725977318494,0.42724,2340.5,2339.0,40.8]
[1725977318495,0.42725,2340.5,2339.3,3.71]
[1725977318684,10.71365557,2340.9,2339.3,3.71]
[1725977318988,10.71365557,2340.9,2339.8,0.42735]
[1725977319196,10.71365557,2340.9,2339.6,0.42738]
[1725977319197,0.42726,2340.4,2339.6,0.42738]
[1725977319398,0.42728,2340.3,2339.3,3.71]
[1725977319693,0.42728,2340.3,2339.6,0.4274]
[1725977319989,0.42723,2340.6,2339.8,0.42735]
[1725977320187,0.3954,2341.0,2339.6,3.71]
[1725977320395,10.9080209,2340.5,2339.6,3.71]
[1725977320585,11.9759309,2340.9,2339.0,40.8]
[1725977320586,0.42719,2340.8,2339.3,3.71]
[1725977320787,14.6180209,2340.8,2339.3,3.71]
[1725977320981,11.9760709,2340.6,2339.3,3.71]
[1725977321186,3.71,2340.8,2339.0,3.71]
[1725977321381,3.71,2340.8,2338.7,0.3677]
[1725977321382,0.4274,2339.7,2338.7,0.3677]
[1725977321589,0.4274,2339.6,2339.0,0.42751]
[1725977321789,0.42739,2339.7,2338.7,41.1677]
[1725977321988,0.8092,2340.3,2338.7,0.3677]
[1725977321989,3.71,2340.1,2338.7,0.3677]
[1725977322193,10.79497775,2340.1,2338.7,0.3677]